bitfinex/quotes_BTCUSD_20241208
["timestamp","ask_amount","ask_price","bid_price","bid_amount"]
[1733697488291,0.99789266,100070.0,100060.0,0.07647185]
[1733697488525,1.22180766,100070.0,100060.0,0.07647185]
[1733697489459,1.13220621,100070.0,100060.0,0.07647185]
[1733697490856,1.13370102,100070.0,100060.0,0.07647185]
[1733697491074,0.99897832,100070.0,100060.0,0.07647185]
[1733697491300,1.13370028,100070.0,100060.0,0.07647185]
[1733697491525,0.92351298,100070.0,100060.0,0.07647185]
[1733697491731,0.99897832,100070.0,100060.0,0.07647185]
[1733697492418,0.81934805,100070.0,100060.0,0.07647185]
[1733697492828,0.91916339,100070.0,100060.0,0.07647185]
[1733697493037,1.09886382,100070.0,100060.0,0.07647185]
[1733697493452,0.91916339,100070.0,100060.0,0.07647185]
[1733697493668,0.81934805,100070.0,100060.0,0.07647185]
[1733697493865,0.81934805,100070.0,100060.0,0.00017185]
[1733697493866,1.08879346,100070.0,100060.0,0.00017185]
[1733697494086,0.81934805,100070.0,100060.0,0.00017185]
[1733697494466,1.08879346,100070.0,100060.0,0.00103575]
[1733697494670,0.86425562,100070.0,100060.0,0.00103575]
[1733697494897,0.96407096,100070.0,100060.0,0.00103575]
[1733697500208,0.96407096,100070.0,100060.0,0.07943575]
[1733697500209,0.71579028,100070.0,100060.0,0.07943575]
[1733697500378,0.63564342,100070.0,100060.0,0.12583575]
[1733697500607,0.006,100070.0,100060.0,0.21562769]
[1733697500751,0.185874,100070.0,100060.0,0.5298995]
[1733697501134,0.185874,100070.0,100060.0,0.35031561]
[1733697501354,0.006,100070.0,100060.0,0.35031561]
[1733697501592,0.006,100070.0,100060.0,0.5298995]
[1733697501798,0.006,100070.0,100060.0,0.35031561]
[1733697502226,0.006,100070.0,100060.0,0.21562769]
[1733697502433,0.004,100070.0,100060.0,0.21562769]
[1733697502994,0.59761575,100080.0,100070.0,0.1251]
[1733697503202,0.69764526,100080.0,100070.0,0.1251]
[1733697503421,0.52215041,100080.0,100070.0,0.1251]
[1733697503624,0.34228541,100080.0,100070.0,0.1251]
[1733697503833,0.16242941,100080.0,100070.0,0.1251]
[1733697504059,0.71002941,100080.0,100070.0,0.1251]
[1733697504214,0.56002941,100080.0,100070.0,0.1251]
[1733697504645,0.56002941,100080.0,100070.0,0.1291]
[1733697505724,0.56002941,100080.0,100070.0,0.1311]
[1733697506821,0.51002941,100080.0,100070.0,0.1311]
[1733697507496,0.51002941,100090.0,100080.0,0.1316]
[1733697507913,0.46002941,100090.0,100080.0,0.1316]
[1733697508585,0.46002941,100090.0,100080.0,0.311456]
[1733697508993,0.46002941,100090.0,100080.0,0.1316]
[1733697509311,0.46002941,100090.0,100080.0,0.48794999]
[1733697509507,0.46002941,100090.0,100080.0,0.57649948]
[1733697510178,0.46002941,100090.0,100080.0,0.48695085]
[1733697510521,0.46002941,100090.0,100080.0,0.57649948]
[1733697510730,0.46175681,100110.0,100100.0,0.1268]
[1733697511178,0.41175681,100110.0,100100.0,0.1268]
[1733697511359,0.42205858,100120.0,100100.0,0.0817]
[1733697511565,0.42205858,100120.0,100110.0,0.1268]
[1733697511774,0.60184258,100120.0,100110.0,0.1268]
[1733697512263,0.37223044,100120.0,100110.0,0.1268]
[1733697512481,0.36192867,100120.0,100110.0,0.1268]
[1733697512731,0.36392867,100120.0,100110.0,0.1268]
[1733697513209,0.36192867,100120.0,100110.0,0.1268]
[1733697513417,0.36392867,100120.0,100110.0,0.1268]
[1733697517323,0.36565567,100120.0,100110.0,0.1268]
[1733697519192,0.36365567,100120.0,100110.0,0.1268]
[1733697519616,0.36565567,100120.0,100110.0,0.1268]
[1733697519876,0.36665567,100120.0,100110.0,0.1268]
[1733697520126,0.36565567,100120.0,100110.0,0.1268]
[1733697520477,0.36565567,100120.0,100110.0,0.1298]
[1733697520676,0.36565567,100120.0,100110.0,0.1268]
[1733697521485,0.36365567,100120.0,100110.0,0.1268]
[1733697522111,0.31365567,100120.0,100110.0,0.1348]
[1733697522308,0.31365567,100120.0,100110.0,0.1368]
[1733697522779,0.31365567,100120.0,100110.0,0.1348]
[1733697523623,0.00189886,100120.0,100110.0,0.318602]
[1733697523848,0.00189886,100120.0,100110.0,0.49409685]
[1733697525344,0.00189886,100120.0,100110.0,0.41863151]
[1733697525566,0.00189886,100120.0,100110.0,0.56709685]
[1733697526900,0.00189886,100120.0,100110.0,0.76709685]
[1733697532228,0.49538146,100160.0,100130.0,0.486204]
[1733697532453,0.00312153,100150.0,100130.0,0.58623351]
[1733697532630,0.53934792,100160.0,100130.0,0.58623351]
[1733697532829,0.179731,100150.0,100130.0,0.76598651]
[1733697533659,0.179731,100150.0,100130.0,0.76698651]
[1733697534090,0.179731,100150.0,100130.0,0.76598651]
[1733697535150,0.181731,100150.0,100130.0,0.76598651]
[1733697535365,0.002,100150.0,100140.0,0.36047751]
[1733697535592,0.54260507,100160.0,100140.0,0.36047751]
[1733697535805,0.18316007,100160.0,100140.0,0.61568285]
[1733697536011,0.32989192,100160.0,100150.0,0.0489]
[1733697536456,0.15,100160.0,100150.0,0.0489]
[1733697536665,0.32972,100160.0,100150.0,0.0489]
[1733697537103,0.33072,100160.0,100150.0,0.0489]
[1733697537324,0.32972,100160.0,100150.0,0.0489]
[1733697537587,0.33072,100160.0,100150.0,0.0489]
[1733697539442,0.88160033,100160.0,100150.0,0.0489]
[1733697539639,1.06132333,100160.0,100140.0,0.54021751]
[1733697539872,0.00499426,100150.0,100140.0,0.54021751]
[1733697540114,1.19604259,100160.0,100140.0,0.54021751]
[1733697540355,1.09277493,100160.0,100140.0,0.54021751]
[1733697540582,0.54517493,100160.0,100140.0,0.54021751]
[1733697540812,0.54417926,100160.0,100140.0,0.54021751]
[1733697541180,0.54417926,100160.0,100140.0,0.54321751]
[1733697541440,0.54417926,100160.0,100140.0,0.54021751]
[1733697541638,0.54517926,100160.0,100140.0,0.54021751]
[1733697544450,0.54517926,100160.0,100140.0,0.36046951]
[1733697544644,0.00312145,100150.0,100140.0,0.36046951]
[1733697544825,0.54517926,100160.0,100140.0,0.36046951]
[1733697545020,0.00312143,100150.0,100140.0,0.36046951]
[1733697545229,1.09277926,100160.0,100140.0,0.36046951]
[1733697545426,0.00312145,100150.0,100140.0,0.36046951]
[1733697545622,1.09277926,100160.0,100140.0,0.36046951]
[1733697545836,0.00312144,100150.0,100140.0,0.40616951]
[1733697546036,1.09277926,100160.0,100140.0,0.40616951]
[1733697546415,1.09277926,100160.0,100140.0,0.58591751]
[1733697546416,0.00312144,100150.0,100140.0,0.58591751]
[1733697546629,0.00312144,100150.0,100140.0,0.59091751]
[1733697546834,1.09177926,100160.0,100140.0,0.59091751]
[1733697546968,0.00312144,100150.0,100140.0,0.58591751]
[1733697547191,1.09177926,100160.0,100140.0,0.58591751]
[1733697547395,0.00312144,100150.0,100140.0,0.58591751]
[1733697547594,1.09177926,100160.0,100140.0,0.58591751]
[1733697547816,0.00312143,100150.0,100140.0,0.58591751]
[1733697548014,1.09277926,100160.0,100140.0,0.58591751]
[1733697548376,0.00312145,100150.0,100140.0,0.58791751]
[1733697548616,0.00328466,100150.0,100140.0,0.58791751]
[1733697549559,0.00328466,100150.0,100140.0,0.58591751]
[1733697549964,0.00328466,100150.0,100140.0,0.58891751]
[1733697550173,0.7290496,100160.0,100140.0,0.58891751]
[1733697550381,0.00811575,100150.0,100140.0,0.58891751]
[1733697550583,0.9087726,100160.0,100140.0,0.59091751]
[1733697550790,0.00811575,100150.0,100140.0,0.59091751]
[1733697550993,1.0884956,100160.0,100140.0,0.58891751]
[1733697551171,0.00811575,100150.0,100140.0,0.58591751]
[1733697551309,1.0884956,100160.0,100140.0,0.58591751]
[1733697551516,0.0081157,100150.0,100140.0,0.58591751]
[1733697551719,1.0894956,100160.0,100140.0,0.58591751]
[1733697551921,0.0081157,100150.0,100140.0,0.40616951]
[1733697552158,1.0894956,100160.0,100140.0,0.58591051]
[1733697552356,0.0081157,100150.0,100140.0,0.58591051]
[1733697552618,1.0894956,100160.0,100140.0,0.58591051]
[1733697552849,0.00811569,100150.0,100140.0,0.40816951]
[1733697553043,1.0884956,100160.0,100140.0,0.59090951]
[1733697553258,0.0081157,100150.0,100140.0,0.41116951]
[1733697553455,1.0884956,100160.0,100140.0,0.40916951]
[1733697553656,0.0081157,100150.0,100140.0,0.40916951]
[1733697554063,1.0884956,100160.0,100140.0,0.40916951]
[1733697554269,0.0081157,100150.0,100140.0,0.40616951]
[1733697554488,1.0884956,100160.0,100140.0,0.40616951]
[1733697554670,0.00811569,100150.0,100140.0,0.58591751]
[1733697554898,1.0894956,100160.0,100140.0,0.58591751]
[1733697555107,0.00811569,100150.0,100140.0,0.58591751]
[1733697555314,0.00324514,100150.0,100140.0,0.67472694]
[1733697555753,0.00324514,100150.0,100140.0,0.67672694]
[1733697556834,0.00324514,100150.0,100140.0,0.67972694]
[1733697558497,0.36441674,100160.0,100140.0,0.85946794]
[1733697558714,0.00811569,100150.0,100140.0,0.67971994]
[1733697558918,0.54413974,100160.0,100140.0,0.67971994]
[1733697559120,0.00811569,100150.0,100140.0,0.67971994]
[1733697559331,0.36441674,100160.0,100140.0,0.67771994]
[1733697559537,0.0081157,100150.0,100140.0,0.67471894]
[1733697559719,0.36541674,100160.0,100140.0,0.67471894]
[1733697559916,0.0081157,100150.0,100140.0,0.67471894]
[1733697560152,0.36441674,100160.0,100140.0,0.98767308]
[1733697560359,0.00811569,100150.0,100140.0,0.81293308]
[1733697560568,0.36441474,100160.0,100140.0,0.67671894]
[1733697560782,0.36441744,100160.0,100140.0,0.98967308]
[1733697560985,0.00811569,100150.0,100140.0,0.67671894]
[1733697561388,0.36441644,100160.0,100140.0,0.80993308]
[1733697561389,0.36541644,100160.0,100140.0,0.80993308]
[1733697561591,0.36541644,100160.0,100150.0,0.00099839]
[1733697561747,0.36541644,100160.0,100150.0,0.1010279]
[1733697561901,0.18396884,100160.0,100150.0,0.1010279]
[1733697562108,0.36368984,100160.0,100150.0,0.1010279]
[1733697562504,0.36368984,100160.0,100150.0,0.10002951]
[1733697562710,0.36268984,100160.0,100150.0,0.10002951]
[1733697562938,0.36541584,100160.0,100150.0,0.10002951]
[1733697563136,0.40713,100150.0,100140.0,0.000863]
[1733697563359,1.03019534,100150.0,100140.0,0.000863]
[1733697563554,0.775,100150.0,100140.0,0.000863]
[1733697563757,0.95473,100150.0,100140.0,0.000863]
[1733697563968,0.90473,100150.0,100140.0,0.000863]
[1733697564584,0.90473,100150.0,100140.0,0.003863]
[1733697565019,0.85473,100150.0,100140.0,0.003863]
[1733697565585,0.85473,100150.0,100140.0,0.005863]
[1733697565998,0.80473,100150.0,100140.0,0.005863]
[1733697568173,0.88143,100150.0,100140.0,0.005863]
[1733697569533,0.81703106,100150.0,100140.0,0.005863]
[1733697569959,0.76703106,100150.0,100140.0,0.005863]
[1733697570184,0.75403,100150.0,100140.0,0.005863]
[1733697570666,0.70403,100150.0,100140.0,0.005863]
[1733697571610,0.65403,100150.0,100140.0,0.005863]
[1733697572118,0.60403,100150.0,100140.0,0.005863]
[1733697572338,0.0767,100150.0,100140.0,0.005863]
[1733697573248,0.25643,100150.0,100140.0,0.005863]
[1733697574415,0.26686524,100150.0,100140.0,0.005863]
[1733697576066,1.28622543,100150.0,100140.0,1e-06]
[1733697576310,1.78683336,100150.0,100140.0,1e-06]
[1733697576813,1.69780938,100150.0,100140.0,1e-06]
[1733697577038,0.456948,100140.0,100130.0,0.02258285]
[1733697577275,0.79758787,100140.0,100130.0,0.02258285]
[1733697577517,0.70790819,100140.0,100130.0,0.02258285]
[1733697578237,0.70890819,100140.0,100130.0,0.02258285]
[1733697578718,0.82158787,100140.0,100130.0,0.00260885]
[1733697579171,0.64183987,100140.0,100130.0,8.5e-07]
[1733697579683,0.77158787,100140.0,100130.0,8.5e-07]
[1733697579943,0.68190819,100140.0,100130.0,8.5e-07]
[1733697580189,0.87158787,100140.0,100130.0,8.5e-07]
[1733697580429,0.78190819,100140.0,100130.0,8.5e-07]
[1733697581191,0.87158787,100140.0,100130.0,8.5e-07]
[1733697581435,0.78190819,100140.0,100130.0,8.5e-07]
[1733697582132,0.0754,100120.0,100110.0,0.0008633]
[1733697582360,0.33377247,100120.0,100110.0,0.0008633]
[1733697582589,0.28064934,100120.0,100110.0,0.0008633]
[1733697583509,0.28076363,100120.0,100110.0,0.0078633]
[1733697583974,0.23076363,100120.0,100110.0,0.0108633]
[1733697584431,0.07557963,100120.0,100110.0,0.0108633]
[1733697584655,0.1541682,100120.0,100110.0,0.0108633]
[1733697584859,0.3339522,100120.0,100110.0,0.0108633]
[1733697585083,0.33082897,100120.0,100110.0,0.0108633]
[1733697587266,0.26852215,100120.0,100110.0,0.0108633]
[1733697589704,0.27896019,100120.0,100110.0,0.0108633]
[1733697590413,0.82656019,100120.0,100110.0,0.0108633]
[1733697594509,0.77656019,100120.0,100110.0,0.0108633]
[1733697595311,0.75098056,100120.0,100110.0,0.0108633]
[1733697595551,0.8264459,100120.0,100110.0,0.0108633]
[1733697596195,0.75098056,100120.0,100110.0,0.0935633]
[1733697596403,0.20338056,100120.0,100110.0,0.0935633]
[1733697596552,0.02359656,100120.0,100110.0,0.0935633]
[1733697596752,0.20338056,100120.0,100110.0,0.0935633]
[1733697596962,0.20510716,100120.0,100110.0,0.0935633]
[1733697598692,0.19194864,100120.0,100110.0,0.0935633]
[1733697599097,0.26741398,100120.0,100110.0,0.0935633]
[1733697599251,0.81501398,100120.0,100110.0,0.0935633]
[1733697599882,0.73954864,100120.0,100110.0,0.0935633]
[1733697600381,0.73454864,100120.0,100110.0,0.0935633]
[1733697600595,0.80457594,100120.0,100110.0,0.0935633]
[1733697601248,1.15307079,100120.0,100110.0,0.0108633]
[1733697601701,0.97328679,100120.0,100110.0,0.0108633]
[1733697601923,1.15307079,100120.0,100110.0,0.0108633]
[1733697602418,0.60547079,100120.0,100110.0,0.0108633]
[1733697603849,0.53000545,100120.0,100110.0,0.0108633]
[1733697605075,0.48000545,100120.0,100110.0,0.0108633]
[1733697606328,0.49974504,100120.0,100110.0,0.0108633]
[1733697609102,0.50147164,100120.0,100110.0,0.0108633]
[1733697611601,0.20125019,100120.0,100110.0,0.0912633]
[1733697611970,0.02146619,100120.0,100110.0,0.0912633]
[1733697613390,0.20125019,100120.0,100110.0,0.0912633]
[1733697614809,0.1815106,100120.0,100110.0,0.0912633]
[1733697621283,0.1815106,100120.0,100110.0,0.1807112]
[1733697622081,0.6474088,100130.0,100110.0,0.1807112]
[1733697622302,0.18290676,100120.0,100110.0,0.18088312]
[1733697622566,0.179784,100120.0,100110.0,0.18088312]
[1733697622997,0.179784,100120.0,100110.0,0.17788312]
[1733697623820,0.179784,100120.0,100110.0,0.17988312]
[1733697624264,0.179784,100120.0,100110.0,0.18009683]
[1733697624475,0.179784,100120.0,100110.0,0.17809683]
[1733697624866,0.179784,100120.0,100110.0,0.18209683]
[1733697625089,0.179784,100120.0,100110.0,0.09243522]
[1733697631331,0.179784,100120.0,100110.0,0.09238378]
[1733697631570,0.1815106,100120.0,100110.0,0.09238378]
[1733697632088,0.1815106,100120.0,100110.0,0.18204169]
[1733697632350,0.0017266,100120.0,100110.0,0.09238378]
[1733697633051,0.1815106,100120.0,100110.0,0.18204169]
[1733697634670,0.1815106,100120.0,100110.0,0.09238378]
[1733697635637,0.1815106,100120.0,100110.0,0.18204169]
[1733697636354,0.1815106,100120.0,100110.0,0.01198378]
[1733697636355,0.4547106,100120.0,100110.0,0.01198378]
[1733697636632,0.5047106,100120.0,100110.0,0.01198378]
[1733697636878,0.33363856,100120.0,100110.0,0.01198378]
[1733697637093,0.51342256,100120.0,100110.0,0.01198378]
[1733697639375,0.5888879,100120.0,100110.0,0.01198378]
[1733697639617,0.67864488,100120.0,100110.0,0.01198378]
[1733697639799,0.5888879,100120.0,100110.0,0.01198378]
[1733697640014,0.67866136,100120.0,100110.0,0.01198378]
[1733697640216,0.62866136,100120.0,100110.0,0.01198378]
[1733697640464,0.5888879,100120.0,100110.0,0.01198378]
[1733697641425,0.51342256,100120.0,100110.0,0.01198378]
[1733697641634,0.5888879,100120.0,100110.0,0.01198378]
[1733697642246,0.60319602,100120.0,100110.0,0.01198378]
[1733697642454,0.5888879,100120.0,100110.0,0.01198378]
[1733697643556,0.5906145,100120.0,100110.0,0.01198378]
[1733697644916,0.5146145,100120.0,100110.0,0.01198378]
[1733697645947,0.43914916,100120.0,100110.0,0.01198378]
[1733697646153,0.5146145,100120.0,100110.0,0.01198378]
[1733697646853,0.57638796,100120.0,100110.0,0.01198378]
[1733697647088,0.67741747,100120.0,100110.0,0.01198378]
[1733697647303,0.75991747,100120.0,100110.0,0.01198378]
[1733697648880,0.89457766,100120.0,100110.0,0.01198378]
[1733697649150,0.89451429,100120.0,100110.0,0.01198378]
[1733697649631,0.75989212,100120.0,100110.0,0.01198378]
[1733697650510,1.30749212,100120.0,100110.0,0.01198378]
[1733697652458,1.38295746,100120.0,100110.0,0.01198378]
[1733697653332,1.30749212,100120.0,100110.0,0.01198378]
[1733697654577,1.38295746,100120.0,100110.0,0.01198378]
[1733697654979,1.30749212,100120.0,100110.0,0.01198378]
[1733697655154,1.38295746,100120.0,100110.0,0.01198378]
[1733697655628,1.38293213,100120.0,100110.0,0.01198378]
[1733697656482,1.23200145,100120.0,100110.0,0.01198378]
[1733697656683,1.30746679,100120.0,100110.0,0.01198378]
[1733697661193,1.22496679,100120.0,100110.0,0.01198378]
[1733697663853,1.22496679,100120.0,100110.0,0.00498378]
[1733697664271,1.22596679,100120.0,100110.0,0.00098378]
[1733697668886,1.17596679,100120.0,100110.0,0.00098378]
[1733697669736,1.1759838,100120.0,100110.0,0.00098378]
[1733697669993,1.25144914,100120.0,100110.0,0.00098378]
[1733697670215,1.38605883,100120.0,100110.0,0.00098378]
[1733697672177,1.56553841,100120.0,100110.0,0.00098378]
[1733697673405,1.78988789,100120.0,100110.0,0.00098378]
[1733697674488,1.71442255,100120.0,100110.0,0.00098378]
[1733697677795,1.62468276,100120.0,100110.0,0.00098378]
[1733697678001,1.71446334,100120.0,100110.0,0.00098378]
[1733697678889,1.93974402,100120.0,100110.0,0.00098378]
[1733697679124,1.92876344,100120.0,100110.0,0.00098378]
[1733697679337,2.01855523,100120.0,100110.0,0.00098378]
[1733697679565,1.8289481,100120.0,100110.0,0.00098378]
[1733697680211,0.97586734,100110.0,100100.0,0.07454728]
[1733697680425,1.16570309,100110.0,100100.0,0.07471914]
[1733697680647,1.30031278,100110.0,100100.0,0.07471914]
[1733697681491,1.47979236,100110.0,100100.0,0.07471914]
[1733697681902,1.30031278,100110.0,100100.0,0.07771914]
[1733697682404,1.47979236,100110.0,100100.0,0.07971914]
[1733697685380,1.49197904,100110.0,100100.0,0.07971914]
[1733697687792,1.51236428,100110.0,100100.0,0.07971914]
[1733697688834,1.51236428,100110.0,100100.0,0.08058234]
[1733697689661,1.43689894,100110.0,100100.0,0.08058234]
[1733697689870,1.51236428,100110.0,100100.0,0.08058234]
[1733697690603,1.51280616,100110.0,100100.0,0.08058234]
[1733697693678,0.96422056,100110.0,100100.0,0.12558234]
[1733697693901,0.73958868,100110.0,100100.0,0.12558234]
[1733697694349,0.68958868,100110.0,100100.0,0.12558234]
[1733697694475,0.4976,100110.0,100100.0,0.31541097]
[1733697694672,0.4976,100110.0,100100.0,0.80952789]
[1733697694874,0.4976,100110.0,100100.0,1.03402569]
[1733697695483,0.0017266,100120.0,100110.0,0.304502]
[1733697695689,0.0017266,100120.0,100110.0,1.03229137]
[1733697695894,0.179777,100130.0,100120.0,0.1273]
[1733697696093,0.359552,100130.0,100120.0,0.21697998]
[1733697696293,0.179775,100130.0,100120.0,0.21697998]
[1733697696503,0.179775,100130.0,100120.0,0.1273]
[1733697697310,0.35955,100130.0,100120.0,0.1273]
[1733697697526,0.35955,100130.0,100120.0,0.1353]
[1733697697898,0.359511,100140.0,100130.0,0.0827]
[1733697698260,0.359522,100140.0,100130.0,0.0827]
[1733697698469,0.36451783,100140.0,100130.0,0.0827]
[1733697698703,0.359522,100140.0,100130.0,0.0827]
[1733697698907,0.37146446,100140.0,100130.0,0.0827]
[1733697699263,0.37146446,100140.0,100130.0,0.0847]
[1733697699896,0.37146446,100140.0,100130.0,0.0877]
[1733697700899,0.359522,100140.0,100130.0,0.0877]
[1733697704131,0.179748,100140.0,100130.0,0.0877]
[1733697704594,0.179748,100140.0,100130.0,0.1359]
[1733697708430,0.20384936,100150.0,100140.0,0.0803]
[1733697708635,0.22684936,100150.0,100140.0,0.0803]
[1733697709771,0.22790665,100150.0,100140.0,0.0803]
[1733697713314,0.15490665,100150.0,100140.0,0.0803]
[1733697714026,0.15490665,100150.0,100140.0,0.07446842]
[1733697716404,0.15802861,100150.0,100140.0,0.07446842]
[1733697717448,0.15490665,100150.0,100140.0,0.07446842]
[1733697719039,0.01300361,100150.0,100140.0,0.07446842]
[1733697719533,0.19274861,100150.0,100140.0,0.07446842]
[1733697720552,0.19774393,100150.0,100140.0,0.07446842]
[1733697720972,0.19274861,100150.0,100140.0,0.07446842]
[1733697721372,0.19774383,100150.0,100140.0,0.07446842]
[1733697722227,0.19674383,100150.0,100140.0,0.07446842]
[1733697722470,0.19174861,100150.0,100140.0,0.07446842]
[1733697722733,0.19347461,100150.0,100140.0,0.07946842]
[1733697729277,0.14347461,100150.0,100140.0,0.07946842]
[1733697732047,0.15520427,100150.0,100140.0,0.07946842]
[1733697734716,0.15520427,100150.0,100140.0,0.08033132]
[1733697739427,0.01345566,100150.0,100140.0,0.08033132]
[1733697740210,0.19320066,100150.0,100140.0,0.08033132]
[1733697743099,0.19320066,100150.0,100140.0,0.0058629]
[1733697743548,0.14320066,100150.0,100140.0,0.0058629]
[1733697744759,0.15467138,100150.0,100140.0,0.0058629]
[1733697745557,0.24395507,100150.0,100140.0,0.0058629]
[1733697745982,0.24568087,100150.0,100140.0,0.0058629]
[1733697746558,0.32173531,100150.0,100140.0,0.0058629]
[1733697746772,0.45654449,100150.0,100140.0,0.0058629]
[1733697746979,0.579574,100150.0,100140.0,0.0058629]
[1733697747807,0.75931958,100150.0,100140.0,0.0058629]
[1733697754298,0.98478492,100150.0,100140.0,0.0058629]
[1733697754524,0.0791,100140.0,100120.0,0.0009992]
[1733697754751,0.38637971,100130.0,100120.0,0.0009992]
[1733697754982,0.46809752,100130.0,100120.0,0.0009992]
[1733697755205,0.60285252,100130.0,100110.0,0.21714031]
[1733697755435,0.2633688,100120.0,100110.0,0.21714031]
[1733697755677,0.25524934,100120.0,100110.0,0.1274]
[1733697756375,0.25524934,100120.0,100110.0,0.1344]
[1733697756601,0.25524934,100120.0,100110.0,0.1274]
[1733697758052,0.25624934,100120.0,100110.0,0.1364]
[1733697758414,0.25624934,100120.0,100110.0,0.1414]
[1733697758839,0.179784,100120.0,100110.0,0.1274]
[1733697759041,0.179784,100120.0,100110.0,0.1304]
[1733697759463,0.179784,100120.0,100110.0,0.1274]
[1733697759680,0.179784,100120.0,100110.0,0.1294]
[1733697759890,0.179784,100120.0,100110.0,0.1304]
[1733697763832,0.45879071,100150.0,100130.0,0.309066]
[1733697764042,0.14492646,100150.0,100140.0,0.08]
[1733697764265,0.3181066,100160.0,100150.0,0.1293]
[1733697764479,0.0883856,100160.0,100150.0,0.1293]
[1733697764693,0.36437617,100170.0,100150.0,0.1293]
[1733697764898,0.18284157,100160.0,100150.0,0.1293]
[1733697765108,0.17972,100160.0,100150.0,0.30903]
[1733697765338,0.5408448,100170.0,100150.0,0.30903]
[1733697765550,0.00312152,100160.0,100150.0,0.30903]
[1733697765774,0.5408448,100170.0,100150.0,0.30903]
[1733697765987,0.00312142,100160.0,100150.0,0.30903]
[1733697766199,0.5428448,100170.0,100150.0,0.30903]
[1733697766410,0.18283343,100160.0,100150.0,0.30903]
[1733697766612,0.179712,100160.0,100150.0,0.30903]
[1733697767024,0.37453317,100170.0,100150.0,0.30903]
[1733697767226,0.00312145,100160.0,100150.0,0.30903]
[1733697767429,0.55424217,100170.0,100150.0,0.30903]
[1733697767630,0.00312144,100160.0,100150.0,0.30903]
[1733697767838,0.55424217,100170.0,100150.0,0.30903]
[1733697768042,0.00312142,100160.0,100150.0,0.30903]
[1733697768247,0.001,100160.0,100150.0,0.30903]
[1733697769271,0.002,100160.0,100150.0,0.30903]
[1733697769649,0.002,100160.0,100150.0,0.3098928]
[1733697774822,0.56831314,100170.0,100150.0,0.3098928]
[1733697775033,0.61459234,100170.0,100150.0,0.3098928]
[1733697776993,0.61659234,100170.0,100150.0,0.3098928]
[1733697777439,0.61859234,100170.0,100150.0,0.3098928]
[1733697780693,0.62031794,100170.0,100150.0,0.3098928]
[1733697784109,0.44060794,100170.0,100150.0,0.3098928]
[1733697784324,0.179712,100160.0,100150.0,0.3098928]
[1733697784933,0.44060794,100170.0,100150.0,0.3098928]
[1733697785168,0.43860794,100170.0,100150.0,0.3098928]
[1733697785364,0.180712,100160.0,100150.0,0.3098928]
[1733697785788,0.180712,100160.0,100150.0,0.29707102]
[1733697787350,0.179712,100160.0,100150.0,0.29707102]
[1733697788897,0.180712,100160.0,100150.0,0.29707102]
[1733697794979,0.18393057,100160.0,100150.0,0.29707102]
[1733697795193,0.001,100160.0,100150.0,0.29707102]
[1733697796011,0.180712,100160.0,100150.0,0.29707102]
[1733697796265,0.19544587,100160.0,100150.0,0.29707102]
[1733697796558,0.19868377,100160.0,100150.0,0.29707102]
[1733697796777,0.19544587,100160.0,100150.0,0.29707102]
[1733697800971,0.180712,100160.0,100150.0,0.29707102]
[1733697804108,0.1824376,100160.0,100150.0,0.29707102]
[1733697805373,0.18567525,100160.0,100150.0,0.29707102]
[1733697805510,0.00496325,100160.0,100150.0,0.29707102]
[1733697805717,0.0017256,100160.0,100150.0,0.29707102]
[1733697806501,0.1814376,100160.0,100150.0,0.29707102]
[1733697809479,0.1814376,100160.0,100150.0,0.5202929]
[1733697810486,0.1814376,100160.0,100150.0,0.69887041]
[1733697812824,0.1814376,100160.0,100150.0,0.70102801]
[1733697814933,0.1814376,100160.0,100150.0,0.70101806]
[1733697815757,0.1846752,100160.0,100150.0,0.92543308]
[1733697815997,0.67546042,100170.0,100150.0,0.70101806]
[1733697816228,0.179712,100160.0,100150.0,0.70101806]
[1733697816451,0.18470635,100160.0,100150.0,0.70101806]
[1733697816892,0.179712,100160.0,100150.0,0.70101806]
[1733697818121,0.180712,100160.0,100150.0,0.70101806]
[1733697821885,0.180712,100160.0,100150.0,0.52130652]
[1733697822340,0.18394999,100160.0,100150.0,0.52130652]
[1733697822512,0.180712,100160.0,100150.0,0.52130652]
[1733697822919,0.18394999,100160.0,100150.0,0.52130652]
[1733697823570,0.180712,100160.0,100150.0,0.52130652]
[1733697825970,0.001,100160.0,100150.0,0.52130652]
[1733697826254,0.180712,100160.0,100150.0,0.52130652]
[1733697826419,0.18394992,100160.0,100150.0,0.52130652]
[1733697826564,0.180712,100160.0,100150.0,0.52130652]
[1733697826775,0.180712,100160.0,100150.0,0.52133279]
[1733697827207,0.1824384,100160.0,100150.0,0.52133279]
[1733697827820,0.0027264,100160.0,100150.0,0.70106279]
[1733697829540,0.0027264,100160.0,100150.0,0.70115185]
[1733697830637,0.1824384,100160.0,100150.0,0.70115185]
[1733697831095,0.1824384,100160.0,100150.0,0.52142185]
[1733697831721,0.18567632,100160.0,100150.0,0.34183037]
[1733697831944,0.1824384,100160.0,100150.0,0.52142185]
[1733697832625,0.1824384,100160.0,100150.0,0.48494363]
[1733697833054,0.1824384,100160.0,100150.0,0.30535215]
[1733697833263,0.1824384,100160.0,100150.0,0.48494363]
[1733697833483,0.25790374,100160.0,100150.0,0.48494363]
[1733697833712,0.46106908,100160.0,100150.0,0.22535215]
[1733697833916,0.70094711,100160.0,100150.0,0.09065854]
[1733697834138,0.83576416,100160.0,100150.0,0.0008628]
[1733697834353,1.24021532,100160.0,100150.0,0.0008628]
[1733697834563,0.83308183,100160.0,100150.0,0.0008628]
[1733697834813,1.14761089,100160.0,100150.0,0.0008628]
[1733697835245,1.23742778,100160.0,100150.0,0.0008628]
[1733697835460,1.2706404,100160.0,100150.0,0.0008628]
[1733697836339,1.36042927,100160.0,100150.0,0.0008628]
[1733697837254,1.13573418,100160.0,100150.0,0.0008628]
[1733697838374,1.13746058,100160.0,100150.0,0.0008628]
[1733697839225,0.95770451,100160.0,100150.0,0.0008628]
[1733697841084,0.95742836,100160.0,100150.0,0.0008628]
[1733697841322,0.97730472,100160.0,100150.0,0.0008628]
[1733697844021,0.72070987,100160.0,100150.0,0.0008628]
[1733697844252,0.79617521,100160.0,100150.0,0.0008628]
[1733697844492,0.61157735,100160.0,100150.0,0.0008628]
[1733697845410,0.53611201,100160.0,100150.0,0.0008628]
[1733697845657,0.61157735,100160.0,100150.0,0.0008628]
[1733697846127,0.52184544,100160.0,100150.0,0.0008628]
[1733697846363,0.49884544,100160.0,100150.0,0.0008628]
[1733697851363,0.58851238,100160.0,100150.0,0.0008628]
[1733697851796,0.49884544,100160.0,100150.0,0.0008628]
[1733697854602,0.44884544,100160.0,100150.0,0.0008628]
[1733697854820,0.35224544,100160.0,100150.0,0.0008628]
[1733697858376,0.44191238,100160.0,100150.0,0.0008628]
[1733697860078,0.35224544,100160.0,100150.0,0.0008628]
[1733697860823,0.44191238,100160.0,100150.0,0.0008628]
[1733697861687,0.35224544,100160.0,100150.0,0.0008628]